Cogmind - Beta 15 @@@ ROGUE MODE // 2025.08.23 @ 11:35:41 Player: beans Result: Destroyed by G-47 Trooper with Particle Gun Performance ------------- Evolutions (2) 1000 Regions Visited (4) 800 Robots Destroyed (38) 190 Value Destroyed (1073) 1073 Prototype IDs (0) 0 Alien Tech Used (0) 0 Bonus (0) 0 TOTAL SCORE: 3063 Bonus ------- None Cogmind --------- Core Integrity 0/550 Matter 153/300 Energy 27/100 System Corruption 0% Temperature Cool (18) Movement Core (50) Location -8/Materials Parts ------- > --- POWER (2) -------- (None) > --- PROPULSION (3) --- (None) > --- UTILITY (3) ------ Terrain Scan Processor > --- WEAPON (3) ------- (None) > --- INVENTORY (5) ---- Huge Storage Unit Medium Matter Pod (0) Large Matter Pod (150) Peak State ------------ > --- POWER ------------ (None) > --- PROPULSION ------- Light Treads > --- UTILITY ---------- Heat Sink Improved Terrain Scanner Medium Armor Plating > --- WEAPON ----------- Heavy Assault Rifle Autogun Autogun > --- INVENTORY -------- Huge Storage Unit Small Laser [Rating: 13] Favorites ----------- Power Ion Engine Engine Ion Engine Propulsion Light Treads Treads Light Treads Utility Heat Sink Device Heat Sink Storage Huge Storage Unit Processor Terrain Scan Processor Protection Medium Armor Plating Weapon Heavy Assault Rifle Energy Gun Small Laser Energy Cannon Heavy Particle Cannon Ballistic Gun Heavy Assault Rifle Ballistic Cannon Improved Light Cannon Launcher Grenade Launcher Build | -11 -10 -9 -9 -8 ------- Run | Yrd Mat Mat Min Mat Slots Evolved 4 | . . 2 . 2 Power 1 | . . . . 1 Propulsion 1 | . . . . 1 Utility 1 | . . 1 . . Weapon 1 | . . 1 . . Parts Attached 25 | 5 2 13 . 5 Power 2 | 1 . 1 . . Engine 2 | 1 . 1 . . Core . | . . . . . Reactor . | . . . . . Propulsion 4 | 2 . 2 . . Treads 4 | 2 . 2 . . Leg . | . . . . . Wheel . | . . . . . Hover . | . . . . . Flight . | . . . . . Utility 6 | . 2 4 . . Device 3 | . 1 2 . . Storage 1 | . 1 . . . Processor 1 | . . 1 . . Hackware . | . . . . . Protection 1 | . . 1 . . Artifact . | . . . . . Weapon 13 | 2 . 6 . 5 Energy Gun 3 | 2 . . . 1 Energy Cannon 2 | . . . . 2 Ballistic Gun 5 | . . 5 . . Ballistic Cannon 1 | . . 1 . . Launcher 2 | . . . . 2 Special Weapon . | . . . . . Impact Weapon . | . . . . . Slashing Weapon . | . . . . . Piercing Weapon . | . . . . . Special Melee Weapon . | . . . . . Unidentified Prototypes . | . . . . . Parts Lost 22 | . . 11 . 11 Power 1 | . . 1 . . Propulsion 4 | . . 3 . 1 Utility 4 | . . 2 . 2 Weapon 13 | . . 5 . 8 Highest Loss Streak 11 | . . 4 . 11 To Critical Strikes 1 | . . . . 1 Average Backups 3 | . . 2 5 4 Power . | . . . . . Propulsion . | . . . 1 . Utility 1 | . . 1 3 3 Weapon . | . . . 1 1 Tool/Special . | . . . . . Unused Backups 3 | . . 1 . 2 Power . | . . . . . Propulsion 2 | . . 1 . 1 Utility 1 | . . . . 1 Weapon . | . . . . . Tool/Special . | . . . . . Average Slot Usage (%) 67 | . 82 66 77 55 Engine 2 | . 14 1 . . Treads 11 | . 28 10 11 7 Device 16 | . 5 17 22 15 Processor 6 | . . 5 11 9 Protection 1 | . . 1 . . Energy Gun 3 | . 28 1 . . Ballistic Gun 21 | . . 25 22 13 Ballistic Cannon 3 | . . 1 11 7 Peak Build Rating 13 | 5 7 13 13 13 Average Rating 10 | 3 5 10 13 11 On Entrance 7 | . 5 7 13 13 Naked Turns . | . . . . . Heaviest Build 89 | 8 89 89 12 13 Greatest Support 40 | 40 40 40 20 20 Greatest Overweight (x) 4 | . 2 4 . 4 Average Overweight (x) . | . . . . . Largest Inventory Capacity 25 | 5 25 25 5 5 Average Capacity 5 | 5 13 5 5 5 Most Carried 5 | 2 2 5 5 5 Average Carried 3 | . . 3 5 4 Final Capacity 25 | 5 25 5 5 5 Final Carried 5 | . . 5 5 3 Class Distribution -------------------- 63% | Scavenger-Skirmisher 30% | Mutant 3% | Scavenger-Tank 3% | Scavenger-Mutant Dominant Class ---------------- Mutant | -10/Materials Scavenger-Skirmisher | -9/Materials Scavenger-Skirmisher | -9/Mines Scavenger-Skirmisher | -8/Materials Resources | -11 -10 -9 -9 -8 ----------- Run | Yrd Mat Mat Min Mat Matter Collected 1166 | 203 67 870 . 26 Remotely . | . . . . . Salvage Created 1378 | . 81 1130 . 167 Parts 72 | . 5 62 . 5 Haulers Intercepted 3 | . . 3 . . Recyclers Shooed 1 | . . 1 . . Parts Field Recycled . | . . . . . Retrieved Matter . | . . . . . Parts Self-Destructed . | . . . . . Prevented . | . . . . . Kills | -11 -10 -9 -9 -8 ------- Run | Yrd Mat Mat Min Mat Combat Hostiles Destroyed 25 | . 2 18 . 5 Guns 19 | . 2 17 . . Cannons 2 | . . . . 2 AOE 4 | . . 1 . 3 Classes Destroyed 11 | . 1 10 . . Worker 3 | . . 3 . . Builder 1 | . . 1 . . Tunneler 1 | . . 1 . . Hauler 3 | . . 3 . . Recycler 1 | . . 1 . . Operator 1 | . . 1 . . Watcher 3 | . . 2 . 1 Swarmer 3 | . . 3 . . Grunt 13 | . 2 7 . 4 Brawler 1 | . . 1 . . Sentry 8 | . . 7 . 1 Best Kill Streak 5 | . 2 5 . 5 Combat Bots Only 5 | . 2 4 . 5 Max Kills in Single Turn 2 | . 1 2 . 2 Gunslinging 1 | . . 1 . . Exploded 1 | . . 1 . 1 Melee . | . . . . . Uniques/NPCs Destroyed . | . . . . . Combat | -11 -10 -9 -9 -8 -------- Run | Yrd Mat Mat Min Mat Hostile Shots Fired 324 | . 7 155 . 162 Missed 91 | . 1 40 . 50 Hits 233 | . 6 115 . 112 Melee 2 | . . 2 . . Projectile 231 | . 6 113 . 112 AOE 1 | . . 1 . . Critical Strikes 10 | . . 1 . 9 Damage Taken 3116 | . 67 1564 . 1485 Core 976 | . 24 394 . 558 Absorbed by Shields . | . . . . . Core Remaining (%) 63 | 100 90 . 1 . Volleys Fired 127 | 2 10 96 . 19 Largest 3 | 1 2 3 . 3 Hottest 150 | 40 80 80 . 150 Shots Fired 285 | 2 20 216 . 47 Gun 260 | 2 20 216 . 22 Cannon 19 | . . . . 19 Launcher 6 | . . . . 6 Special . | . . . . . Kinetic 210 | . . 177 . 33 Thermal 44 | 2 10 24 . 8 Explosive 5 | . . . . 5 Electromagnetic 26 | . 10 15 . 1 Robot Hit Streak 9 | . 6 9 . 7 Robot Miss Streak 7 | 2 3 7 . 5 Penetration Max . | . . . . . Secondary Targets 6 | . . 6 . . Max Gunslinging Chain 1 | . . 1 . . Shots Hit Robots 159 | . 12 123 . 24 Core Hits 69 | . 4 48 . 17 Critical Kills . | . . . . . Critical Parts Destroyed . | . . . . . Critical Strikes 1 | . . 1 . . Destroy 1 | . . 1 . . Melee Attacks . | . . . . . Impact . | . . . . . Slashing . | . . . . . Piercing . | . . . . . Sneak Attacks . | . . . . . Combat Hostiles . | . . . . . Follow-up Attacks . | . . . . . Damage Inflicted 3005 | . 144 2082 . 779 Guns 2184 | . 144 1857 . 183 Cannons 254 | . . . . 254 Explosions 567 | . . 225 . 342 Melee . | . . . . . Ramming . | . . . . . Kinetic 1877 | . . 1563 . 314 Thermal 403 | . 78 202 . 123 Explosive 493 | . . 225 . 268 Electromagnetic 232 | . 66 92 . 74 Impact . | . . . . . Slashing . | . . . . . Piercing . | . . . . . Highest Corruption . | . . . . . Average Corruption . | . . . . . Corruption Purged . | . . . . . Corruption Blocked . | . . . . . Overload Shots . | . . . . . Overflow Damage 53 | . . 47 . 6 Projectiles . | . . . . . Explosions 53 | . . 47 . 6 Melee . | . . . . . Knockbacks 3 | . . . . 3 Impact . | . . . . . Kinetic 2 | . . . . 2 Secondary 1 | . . . . 1 Self-Inflicted Damage 46 | . . . . 46 Shots 2 | . . . . 2 Rammed . | . . . . . Targets Rammed . | . . . . . Kicked . | . . . . . Crushed . | . . . . . Highest Temperature 186 | . 144 34 . 186 Average Temperature 44 | . 71 12 . 52 Received Heat Transfer 1428 | . 36 582 . 810 Siege Activations . | . . . . . Martial Activations . | . . . . . Shielding Activations . | . . . . . Robots Disrupted . | . . . . . Combat Hostiles . | . . . . . Robots Corrupted . | . . . . . Combat Hostiles . | . . . . . Parts Fried . | . . . . . Impact Corruptions . | . . . . . Robots Melted . | . . . . . Combat Hostiles . | . . . . . Parts Melted 1 | . . . . 1 Heat Transferred 823 | . 175 450 . 198 Parts Sabotaged . | . . . . . Parts Stolen . | . . . . . Parts Stripped . | . . . . . Power Chain Reactions . | . . . . . Alert | -11 -10 -9 -9 -8 ------- Run | Yrd Mat Mat Min Mat Maximum Alert Level . | . . . . . Low Security (%) 100 | 100 100 100 100 100 Level 1 . | . . . . . Level 2 . | . . . . . Level 3 . | . . . . . Level 4 . | . . . . . Level 5 . | . . . . . High Security . | . . . . . Max Security . | . . . . . Peak Influence 183 | . 30 183 . 120 Initial . | . . . . . Average 49 | . 8 65 . 16 Influence Increases 818 | . 40 613 . 165 Destroy 0b10 Robot/C 500 | . 40 360 . 100 Destroy 0b10 Robot/NC 65 | . . 60 . 5 Destroy Leader 152 | . . 130 . 22 Disable Machine 60 | . . 45 . 15 Destroy Structure 41 | . . 18 . 23 Influence Decreases 797 | . 40 613 . 144 Time Decay 591 | . 40 507 . 44 Lost Part 206 | . . 106 . 100 Squads Dispatched 5 | . . 2 . 3 Investigation 1 | . . 1 . . Extermination . | . . . . . Reinforcement 3 | . . 1 . 2 Assault . | . . . . . Garrison 1 | . . . . 1 Intercept . | . . . . . Searches Triggered . | . . . . . Construction Impeded 1 | . . . . 1 Haulers Reinforced . | . . . . . Active Scanning Responses . | . . . . . Cargo Convoy Interrupts . | . . . . . Stealth | -11 -10 -9 -9 -8 --------- Run | Yrd Mat Mat Min Mat Distress Signals 4 | . 1 2 . 1 Communications Jammed . | . . . . . Distress Signals . | . . . . . Times Spotted 44 | . 5 26 . 13 Peak Tracking Total 6 | . 3 4 . 6 Tactical Retreats . | . . . . . Traps | -11 -10 -9 -9 -8 ------- Run | Yrd Mat Mat Min Mat Traps Triggered 1 | . . 1 . . Indirectly . | . . . . . Trap Hack Attempts . | . . . . . Triggered . | . . . . . Disarmed . | . . . . . Reprogrammed . | . . . . . Reused . | . . . . . Traps Extracted . | . . . . . Installed . | . . . . . Triggered . | . . . . . Machines | -11 -10 -9 -9 -8 ---------- Run | Yrd Mat Mat Min Mat Machines Disabled 4 | . . 3 . 1 Max in Single Turn 1 | . . 1 . 1 Machines Repaired . | . . . . . Machines Dismantled . | . . . . . Machines Sabotaged . | . . . . . Overloaded Fab Kills . | . . . . . Hacking | -11 -10 -9 -9 -8 --------- Run | Yrd Mat Mat Min Mat Machines Accessed 1 | . . 1 . . Terminals . | . . . . . Fabricators . | . . . . . Repair Stations . | . . . . . Recycling Units 1 | . . 1 . . Scanalyzers . | . . . . . Garrison Access . | . . . . . Total Hacks 1 | . . 1 . . Successful 1 | . . 1 . . Failed . | . . . . . Catastrophic . | . . . . . Database Lockouts . | . . . . . Manual . | . . . . . Terminals . | . . . . . Fabricators . | . . . . . Repair Stations . | . . . . . Recycling Units 1 | . . 1 . . Scanalyzers . | . . . . . Garrison Access . | . . . . . Terminal Hacks . | . . . . . Fabricator Hacks . | . . . . . Repair Station Hacks . | . . . . . Recycling Unit Hacks 1 | . . 1 . . Report Inventory 1 | . . 1 . . Scanalyzer . | . . . . . Garrison Access Hacks . | . . . . . Unauthorized Hacks . | . . . . . Terminals . | . . . . . Fabricators . | . . . . . Repair Stations . | . . . . . Recycling Units . | . . . . . Scanalyzers . | . . . . . Garrison Access . | . . . . . Data Cores Recovered 1 | . . 1 . . Used . | . . . . . Hacking Detections . | . . . . . Full Trace Events . | . . . . . Feedback Events . | . . . . . Feedback Blocked . | . . . . . Robot Schematics Acquired . | . . . . . Robots Built . | . . . . . Authchips . | . . . . . Time . | . . . . . Total Robot Build Rating . | . . . . . Part Schematics Acquired . | . . . . . Parts Built . | . . . . . Authchips . | . . . . . Time . | . . . . . Total Part Build Rating . | . . . . . Parts Repaired . | . . . . . Time . | . . . . . Parts Recycled . | . . . . . Recycled Matter . | . . . . . Retrieved Matter . | . . . . . Retrieved Components . | . . . . . Parts Scanalyzed . | . . . . . Part Schematics Acquired . | . . . . . Parts Damaged . | . . . . . Bothacking | -11 -10 -9 -9 -8 ------------ Run | Yrd Mat Mat Min Mat Used RIF Installer . | . . . . . Robots Hacked . | . . . . . Non-combat . | . . . . . Combat . | . . . . . Robot Hacks Applied . | . . . . . Relay Couplers Released . | . . . . . Fabnet Peak Effective % . | . . . . . Robots Rewired . | . . . . . Allies Hacked . | . . . . . Hacks Repelled . | . . . . . Allies | -11 -10 -9 -9 -8 -------- Run | Yrd Mat Mat Min Mat Total Allies . | . . . . . Largest Group . | . . . . . Highest-Rated Group . | . . . . . Highest-Rated Ally . | . . . . . Total Orders . | . . . . . Ally Attacks . | . . . . . Total Damage . | . . . . . Kills . | . . . . . Allies Corrupted . | . . . . . Allies Melted . | . . . . . Intel | -11 -10 -9 -9 -8 ------- Run | Yrd Mat Mat Min Mat Active Infowar (turns) 1739 | . . 1306 202 231 Terrain 1739 | . . 1306 202 231 Robot Analysis Total . | . . . . . Derelict Logs Recovered . | . . . . . Drone Launches . | . . . . . Drone Recoveries . | . . . . . Exploration | -11 -10 -9 -9 -8 ------------- Run | Yrd Mat Mat Min Mat Turns Passed 2414 | 67 159 1722 202 264 Spaces Moved 751 | 41 61 564 30 55 Core 77 | 10 . 49 . 18 Treads 674 | 31 61 515 30 37 Legs . | . . . . . Wheels . | . . . . . Hover . | . . . . . Flight . | . . . . . Fastest Speed 50 | 50 160 100 160 50 Average Speed 166 | 133 209 166 160 148 Slowest Speed 320 | 160 320 320 160 250 Overloaded Moves . | . . . . . Propulsion Burnouts . | . . . . . Robots Hopped . | . . . . . Potential Cave-ins . | . . . . . Cave-ins Triggered . | . . . . . Exploration Rate (%) 19 | 4 18 50 11 12 Regions Visited 4 Branch Regions 1 Pre-discovered Areas . | . . . . . Known Exits Taken . | . . . . . Unknown Exits Taken 4 | 1 1 1 1 . Scrap Searched . | . . . . . Spaces Dug . | . . . . . Terrain Destroyed 36 | . . 17 . 19 Melee . | . . . . . Projectile 2 | . . . . 2 AOE 34 | . . 17 . 17 Terrain Rammed . | . . . . . Walls Destroyed . | . . . . . Machines Disabled . | . . . . . Actions | -11 -10 -9 -9 -8 --------- Run | Yrd Mat Mat Min Mat Total 1687 | 52 74 1179 184 198 Wait 757 | . . 487 155 115 Move 747 | 40 60 563 29 55 Hop . | . . . . . Pick Up 27 | 5 2 17 . 3 Fast Attach 2 | . . 1 . 1 Attach 22 | 5 2 11 . 4 Detach 1 | . . 1 . . Swap 1 | . . 1 . . Drop 3 | . . 2 . 1 Fire 127 | 2 10 96 . 19 Melee . | . . . . . Ram . | . . . . . Kick . | . . . . . Crush . | . . . . . Escape Stasis . | . . . . . Rewire . | . . . . . Trap . | . . . . . Miscellaneous . | . . . . . Route ------- -11/Scrapyard -10/Materials -9/Materials (discovered 3 exits: [*Mat x2] / [*Min]) -9/Mines -8/Materials History --------- Turn | Location | Event 6 | -11/Scrapyard | Discovered new exit (range 16) 68 | -11/Scrapyard | Entered Materials 189 | -10/Materials | Discovered new exit (range 13) 227 | -10/Materials | Entered another Materials area 227 | -9/Materials | Evolved 2 slots: Utility x1, Weapon x1 318 | -9/Materials | Build established: Mutant 419 | -9/Materials | Core integrity fell below 50% 421 | -9/Materials | Lost 4 parts (1n1u2w) 716 | -9/Materials | Discovered new exit (range 15) 1055 | -9/Materials | Core integrity fell below 20% 1082 | -9/Materials | Build established: Scavenger-Skirmisher 1304 | -9/Materials | Discovered new exit (range 10) 1703 | -9/Materials | Discovered new exit (range 16) 1949 | -9/Materials | Entered Mines 2133 | -9/Mines | Discovered new exit (range 11) 2134 | -9/Mines | Assembled infested the area 2139 | -9/Mines | Assisted by a Guerilla fighting off Assembled 2151 | -9/Mines | Entered Materials 2151 | -8/Materials | Evolved 2 slots: Power x1, Propulsion x1 2350 | -8/Materials | Garrison activated, responded to threat 2379 | -8/Materials | Core integrity fell below 50% 2406 | -8/Materials | Core integrity fell below 20% 2415 | -8/Materials | Destroyed by G-47 Trooper with Particle Gun Last Messages --------------- Hvy. Particle Cannon destroyed. K-01 Serf collects debris. The unstable cave ceiling collapses. K-01 Serf collects debris. Critical hit (Burn: +37). Hvy. Particle Cannon destroyed. K-01 Serf collects debris. Slug penetrates Wall. Critical hit (Burn: +37). K-01 Serf collects debris. Slug penetrates Wall. Acquired Shock Bomb Launcher. K-01 Serf collects debris. U-05 Engineer lays Concrete. K-01 Serf collects debris. U-05 Engineer lays Concrete. K-01 Serf collects debris. Sml. Laser destroyed. U-05 Engineer builds a Wall. Shock Bomb Launcher destroyed. Map ----- +----------------------------------------------------+ | ???????????????????????????????????????????? | | ???????????????????????????????????????????? | | ???????????????????????????????????????????? | | ???????????????????????????????????????????? | | ???????????????????????????????????????????? | | ???????????????????????????????????????????? | | ?????????????????????####??????????????????? | | ????????????????????? ??????????????????? | | ????????????????????? ??????????????????? | | ????????????????????? #?????????????????? | | ?????????????????????# #??? ??? ????????? | | ?????????????????????# #???? ??? ????????? | | ?????????????????????# #?????????????????? | | ?????????????????????+ +? ?? ???????? ???? | | ???????????????????? # #??? ? ??? ???????? | | ???????????????????"?# #? ?????? ???????? | | ?????????????????????# #????##? + ""???? | | ????????????????#????#^^ ######## #???? ? | | ????????????????#?##?# # T # # ?????# | | ?????????????????????# # # ####??#? | | ??????????????######## # # #?####?? | | ?????????????## # # # ?#? | | ?????????????#" g # # ? ?? | | ?????????????#T ]!^ # =]! " ??## | | ?????????????# ]! #= ] ! # #?#?#### | | ?????????????## ]@ # ] ! # ## | | ??????????????# g ;### ## | | ??????????????# ### % # """ ? | | ??????????????#] """ gg% u # """ | | ??????????????# """ T / """ ? | | ??????????????# """ % %% k # ? | | ??????????????# #* # | | ??????????????# ### ## ? | | ??????????????" ![[k a T ### ######?# | | ?????????????#T ![ # ### #??##### | | ??????????????" [[ # ### ######## | | ??????????????# #! ### # | | ????????????????? = # ### # | | ????????????????? # ### # | | ?????????????????? " " ###+########### ## | | ????????????????????"G" ### ###?#######+## | | ????????????????????""? ?### ?##?### | | ?????????????????????? ###### """ "" | | ?????????????????????? + """ "" | | ???????????????????????+?###+######## """ "" | | ??????????????????????? ? ? ## | | ?????????????????????? ? #?S ? ## | | ?????????????????????? "?????"? ?## | | ???????????????????????"?" # "" ? ?# ! | | ????????????????????????"??# ?######## | +----------------------------------------------------+ Best States ------------- Heat Dissipation 41 Energy Generation 12 Energy Capacity 265 Matter Stores 300 Matter Capacity 300 Sight Range 16 Terrain Scan Range 16 Terrain Scan Density 85 Armor Coverage 225 Evasion (%) 50 Recoil Reduction 2 Item Schematics ----------------- None Robot Schematics ------------------ None Fabricated ------------ Nothing Repaired ---------- Nothing Alien Tech Used ----------------- None Achievements -------------- None Challenges ------------ None Game ------ Seed DisintegrationNovaScanner Manual? 0 Play Time 00:12:11 Cumulative 101.4 hours Start 2025.08.23 @ 10:46:31 End 2025.08.23 @ 11:35:41 Sessions 1 Manual Loads 0 Difficulty Rogue Special Mode None Game No. 388 Rogue 388 Adventurer 0 Explorer 0 Win Type - Total 0 Types 0/0/0/0/0/0/0/0/0/0 Lore% 43 Gallery% 41 Achievement% 31 Wizard Run 0 Options --------- Layout 2 ASCII 0 Keyboard 0 Movement Mouse Keybinds 0 Fullscreen 2 Font 24/Smallcaps Map View 50x44 Zoom Use 0% Tactical HUD 0 Map Filters NONE Filters NONE Steam 1 RUN: 05ecaf29-9ffb-43bc-80a1-71fb06e6ae9f